Cogmind - Beta 11 @@@ ROGUE MODE // 2022.04.15 @ 10:32:34 Player: Red Box Result: Destroyed by S-10 Pest with Light Assault Rifle Performance ------------- Evolutions (0) 0 Regions Visited (2) 400 Robots Destroyed (25) 125 Value Destroyed (315) 315 Prototype IDs (2) 40 Alien Tech Used (0) 0 Bonus (-26) -26 TOTAL SCORE: 854 Bonus ------- Friendly Fire -26 Cogmind --------- Core Integrity 0/250 Matter 267/300 Energy 60/100 System Corruption 0% Temperature Cool (0) Movement Treading (240) Ox1 Location -10/Mines Parts ------- > --- POWER (1) -------- (None) > --- PROPULSION (2) --- Light Treads Wheel > --- UTILITY (2) ------ Heat Sink Large Storage Unit > --- WEAPON (2) ------- Medium Laser Light Cannon > --- INVENTORY (15) --- Light Treads Aluminum Leg Compact Wheel Heat Sink Large Storage Unit Huge Storage Unit High-capacity Battery (250) Improved Terrain Scanner Targeting Computer EM Pulse Gun EM Pulse Gun Medium Laser Mining Claw Peak State ------------ > --- POWER ------------ Light Ion Engine > --- PROPULSION ------- Aluminum Leg Aluminum Leg > --- UTILITY ---------- Medium Storage Unit Improved Terrain Scanner > --- WEAPON ----------- Medium Laser Medium Laser > --- INVENTORY -------- Light Treads Light Treads Wheel Wheel Compact Wheel Small Laser Light Assault Rifle Light Cannon Grenade Launcher Mining Claw [Rating: 10] Favorites ----------- Power Light Ion Engine Engine Light Ion Engine Propulsion Aluminum Leg Treads Light Treads Leg Aluminum Leg Wheel Wheel Utility Heat Sink Device Heat Sink Storage Large Storage Unit Weapon Medium Laser Energy Gun Medium Laser Ballistic Cannon Light Cannon Launcher Grenade Launcher Slashing Weapon Mining Claw Build | -11 -10 -10 ------- Run | Scr Mat Min Slots Evolved . | . . . Power . | . . . Propulsion . | . . . Utility . | . . . Weapon . | . . . Parts Attached 23 | 7 13 3 Power 2 | 1 1 . Engine 2 | 1 1 . Core . | . . . Reactor . | . . . Propulsion 5 | 2 2 1 Treads 1 | . . 1 Leg 2 | 2 . . Wheel 2 | . 2 . Hover . | . . . Flight . | . . . Utility 8 | 2 6 . Device 3 | 1 2 . Storage 5 | 1 4 . Processor . | . . . Hackware . | . . . Protection . | . . . Artifact . | . . . Weapon 8 | 2 4 2 Energy Gun 5 | 2 3 . Energy Cannon . | . . . Ballistic Gun . | . . . Ballistic Cannon 1 | . . 1 Launcher 1 | . . 1 Special Weapon . | . . . Impact Weapon . | . . . Slashing Weapon 1 | . 1 . Piercing Weapon . | . . . Special Melee Weapon . | . . . Unidentified Prototypes . | . . . Parts Lost 4 | . 1 3 Power 2 | . 1 1 Propulsion 1 | . . 1 Utility . | . . . Weapon 1 | . . 1 Highest Loss Streak 3 | . 1 3 To Critical Strikes . | . . . Average Slot Usage (%) 98 | . 98 100 Engine 13 | . 13 14 Leg 16 | . 18 . Wheel 11 | . 9 28 Device 14 | . 14 14 Storage 14 | . 14 14 Energy Gun 24 | . 25 14 Launcher 2 | . . 14 Slashing Weapon 1 | . 1 . Naked Turns . | . . . Heaviest Build 88 | 12 88 29 Greatest Support 20 | 20 20 20 Greatest Overweight (x) 4 | . 4 1 Average Overweight (x) . | . . 1 Largest Inventory Capacity 25 | 8 25 15 Average Capacity 11 | 6 11 15 Most Carried 15 | 7 14 15 Average Carried 10 | 5 10 14 Final Capacity 15 | 8 15 15 Final Carried 14 | 7 14 13 Class Distribution -------------------- 100% | Mutant Dominant Class ---------------- Mutant | -10/Materials Mutant | -10/Mines Resources | -11 -10 -10 ----------- Run | Scr Mat Min Matter Collected 505 | 259 134 112 Remotely . | . . . Salvage Created 526 | 25 384 117 Parts 44 | 5 29 10 Haulers Intercepted 2 | . 2 . Recyclers Shooed . | . . . Parts Field Recycled . | . . . Retrieved Matter . | . . . Parts Self-Destructed . | . . . Prevented . | . . . Kills | -11 -10 -10 ------- Run | Scr Mat Min Combat Hostiles Destroyed 30 | . 9 21 Guns 15 | . 9 6 AOE 15 | . . 15 Classes Destroyed 7 | 1 5 1 Worker 1 | . 1 . Tunneler 2 | 2 . . Hauler 2 | . 2 . Watcher 3 | . 3 . Swarmer 15 | . 7 8 Grunt 2 | . 2 . Assembled 13 | . . 13 Best Kill Streak 16 | 2 3 16 Combat Bots Only 16 | . 3 16 Max Kills in Single Turn 4 | 1 2 4 Gunslinging . | . . . Exploded 4 | . . 4 Melee . | . . . Uniques/NPCs Destroyed . | . . . Combat | -11 -10 -10 -------- Run | Scr Mat Min Damage Taken 785 | . 481 304 Core 255 | . 179 76 Absorbed by Shields . | . . . Regen/Repaired (Parts) 76 | . 76 . Core Remaining (%) 100 | 100 . . Volleys Fired 68 | 6 41 21 Largest 2 | 2 2 2 Hottest 100 | 90 100 85 Shots Fired 126 | 12 82 32 Gun 112 | 12 82 18 Cannon 2 | . . 2 Launcher 12 | . . 12 Special . | . . . Kinetic 2 | . . 2 Thermal 112 | 12 82 18 Explosive 12 | . . 12 Electromagnetic . | . . . Robot Hit Streak 7 | 3 7 7 Robot Miss Streak 4 | 2 4 3 Penetration Max . | . . . Secondary Targets 2 | . 2 . Max Gunslinging Chain 1 | . 1 . Shots Hit Robots 62 | 5 40 17 Core Hits 56 | 2 17 37 Critical Kills . | . . . Critical Parts Destroyed . | . . . Critical Strikes 8 | . 7 1 Burn 8 | . 7 1 Melee Attacks 3 | . 3 . Impact . | . . . Slashing 3 | . 3 . Piercing . | . . . Sneak Attacks . | . . . Combat Hostiles . | . . . Follow-up Attacks . | . . . Damage Inflicted 1749 | 60 602 1087 Guns 827 | 60 602 165 Cannons 33 | . . 33 Explosions 889 | . . 889 Melee . | . . . Ramming . | . . . Kinetic 33 | . . 33 Thermal 827 | 60 602 165 Explosive 889 | . . 889 Electromagnetic . | . . . Impact . | . . . Slashing . | . . . Piercing . | . . . Highest Corruption . | . . . Average Corruption . | . . . Corruption Purged . | . . . Corruption Blocked . | . . . Overload Shots . | . . . Overflow Damage 24 | . . 24 Projectiles . | . . . Explosions 24 | . . 24 Melee . | . . . Knockbacks . | . . . Impact . | . . . Kinetic . | . . . Secondary . | . . . Self-Inflicted Damage 149 | . 90 59 Shots 4 | . 1 3 Rammed . | . . . Targets Rammed . | . . . Kicked . | . . . Crushed . | . . . Highest Temperature 282 | 90 282 56 Average Temperature 83 | 37 92 38 Received Heat Transfer 78 | . 18 60 Effects 1 | . 1 . Energy Bleed 1 | . 1 . Siege Activations . | . . . Robots Corrupted . | . . . Combat Hostiles . | . . . Parts Fried . | . . . Impact Corruptions . | . . . Robots Melted 1 | . 1 . Combat Hostiles . | . . . Parts Melted 5 | . 5 . Heat Transferred 2963 | 161 2247 555 Parts Sabotaged . | . . . Parts Stolen . | . . . Parts Stripped . | . . . Power Chain Reactions . | . . . Missiles Intercepted . | . . . Alert | -11 -10 -10 ------- Run | Scr Mat Min Peak Influence 363 | 10 259 363 Initial 7 | . 6 7 Average 127 | 2 117 242 Maximum Alert Level 1 | . 1 1 Low Security (%) 77 | 100 84 29 Level 1 22 | . 15 70 Level 2 . | . . . Level 3 . | . . . Level 4 . | . . . Level 5 . | . . . High Security . | . . . Max Security . | . . . Squads Dispatched . | . . . Investigation . | . . . Extermination . | . . . Reinforcement . | . . . Assault . | . . . Garrison . | . . . Intercept . | . . . Searches Triggered . | . . . Construction Impeded . | . . . Haulers Reinforced . | . . . Active Scanning Responses . | . . . Cargo Convoy Interrupts . | . . . Stealth | -11 -10 -10 --------- Run | Scr Mat Min Distress Signals . | . . . Communications Jammed . | . . . Distress Signals . | . . . Times Spotted 45 | . 19 26 Peak Tracking Total 8 | . 4 8 Tactical Retreats . | . . . Traps | -11 -10 -10 ------- Run | Scr Mat Min Traps Triggered . | . . . Indirectly . | . . . Trap Hack Attempts . | . . . Triggered . | . . . Disarmed . | . . . Reprogrammed . | . . . Reused . | . . . Traps Extracted . | . . . Installed . | . . . Triggered . | . . . Machines | -11 -10 -10 ---------- Run | Scr Mat Min Machines Disabled 3 | . 3 . Max in Single Turn 3 | . 3 . Machines Sabotaged . | . . . Garrisons Compromised . | . . . Overloaded Fab Kills . | . . . Hacking | -11 -10 -10 --------- Run | Scr Mat Min Machines Accessed 10 | . 9 1 Terminals 7 | . 6 1 Fabricators . | . . . Repair Stations 1 | . 1 . Recycling Units 2 | . 2 . Scanalyzers . | . . . Garrison Access . | . . . Total Hacks 26 | . 24 2 Successful 15 | . 14 1 Failed 11 | . 10 1 Catastrophic 1 | . 1 . Database Lockouts . | . . . Manual 15 | . 13 2 Terminals 17 | . 15 2 Fabricators . | . . . Repair Stations 4 | . 4 . Recycling Units 5 | . 5 . Scanalyzers . | . . . Garrison Access . | . . . Terminal Hacks 5 | . 4 1 Prototype ID Bank 1 | . 1 . Branch Access Points 1 | . . 1 Locate Traps 3 | . 3 . Fabricator Hacks . | . . . Repair Station Hacks 4 | . 4 . Scan Component 2 | . 2 . Repair 2 | . 2 . Recycling Unit Hacks 2 | . 2 . Retrieve Components 2 | . 2 . Scanalyzer . | . . . Garrison Access Hacks . | . . . Unauthorized Hacks 4 | . 4 . Terminals 2 | . 2 . Assimilate 1 | . 1 . Operators 1 | . 1 . Fabricators . | . . . Repair Stations . | . . . Recycling Units 2 | . 2 . Reject 2 | . 2 . Scanalyzers . | . . . Garrison Access . | . . . Data Cores Recovered . | . . . Used . | . . . Hacking Detections 9 | . 8 1 Full Trace Events . | . . . Feedback Events . | . . . Feedback Blocked . | . . . Robot Schematics Acquired . | . . . Robots Built . | . . . Authchips . | . . . Time . | . . . Total Robot Build Rating . | . . . Part Schematics Acquired . | . . . Parts Built . | . . . Authchips . | . . . Time . | . . . Total Part Build Rating . | . . . Parts Repaired 2 | . 2 . Time 52 | . 52 . Parts Recycled . | . . . Recycled Matter . | . . . Retrieved Matter . | . . . Retrieved Components 10 | . 10 . Parts Scanalyzed . | . . . Part Schematics Acquired . | . . . Parts Damaged . | . . . Bothacking | -11 -10 -10 ------------ Run | Scr Mat Min Used RIF Installer . | . . . Robots Hacked . | . . . Non-combat . | . . . Combat . | . . . Robot Hacks Applied . | . . . Relay Couplers Released . | . . . Fabnet Peak Effective % . | . . . Robots Rewired . | . . . Allies Hacked . | . . . Hacks Repelled . | . . . Allies | -11 -10 -10 -------- Run | Scr Mat Min Total Allies 1 | . 1 . Largest Group 1 | . 1 1 Highest-Rated Group 10 | . 10 10 Highest-Rated Ally 10 | . 10 10 Total Orders . | . . . Ally Attacks . | . . . Total Damage . | . . . Kills . | . . . Allies Corrupted 1 | . . 1 Allies Melted . | . . . Intel | -11 -10 -10 ------- Run | Scr Mat Min Robot Analysis Total . | . . . Derelict Logs Recovered . | . . . Drone Launches . | . . . Drone Recoveries . | . . . Exploration | -11 -10 -10 ------------- Run | Scr Mat Min Turns Passed 1537 | 97 1224 216 Spaces Moved 1090 | 55 868 167 Core 6 | 6 . . Treads . | . . . Legs 593 | 49 544 . Wheels 491 | . 324 167 Hover . | . . . Flight . | . . . Fastest Speed 50 | 50 95 95 Average Speed 110 | 112 112 95 Slowest Speed 400 | 120 400 95 Overloaded Moves . | . . . Propulsion Burnouts . | . . . Robots Hopped . | . . . Cave-ins Triggered . | . . . Exploration Rate (%) 46 | 5 97 37 Regions Visited 2 Branch Regions 1 Pre-discovered Areas . | . . . Known Exits Taken . | . . . Unknown Exits Taken 2 | 1 1 . Scrap Searched . | . . . Spaces Dug 1 | . 1 . Terrain Destroyed 115 | . 29 86 Melee 1 | . 1 . Projectile . | . . . AOE 114 | . 28 86 Terrain Rammed . | . . . Walls Destroyed . | . . . Machines Disabled . | . . . Actions | -11 -10 -10 --------- Run | Scr Mat Min Total 1294 | 75 1026 193 Wait 75 | . 74 1 Move 1088 | 54 867 167 Hop . | . . . Pick Up 25 | 8 16 1 Fast Attach 8 | 6 2 . Attach 7 | 1 4 2 Detach 1 | . 1 . Swap 8 | . 7 1 Drop 11 | . 11 . Fire 68 | 6 41 21 Melee 3 | . 3 . Ram . | . . . Kick . | . . . Crush . | . . . Escape Stasis . | . . . Rewire . | . . . Trap . | . . . Miscellaneous . | . . . Route ------- -11/Scrapyard -10/Materials (discovered 5 exits: [*Mat x3] / *Min x2) -10/Mines History --------- Turn | Location | Event 7 | -11/Scrapyard | Discovered new exit (range 15) 98 | -11/Scrapyard | Entered Materials 261 | -10/Materials | Discovered new exit (range 16) 316 | -10/Materials | Build established: Mutant 502 | -10/Materials | Discovered new exit (range 7) 658 | -10/Materials | Core integrity fell below 50% 676 | -10/Materials | Discovered new exit (range 16) 823 | -10/Materials | Discovered new exit (range 10) 928 | -10/Materials | Discovered new exit (range 16) 1131 | -10/Materials | Repaired Med. Laser 1158 | -10/Materials | Repaired Med. Laser 1322 | -10/Materials | Entered Mines 1322 | -10/Mines | Accompanied by 1 ally 1323 | -10/Mines | Assembled infested the area 1327 | -10/Mines | Core integrity fell below 20% 1328 | -10/Mines | Assisted by a Guerilla fighting off Assembled 1407 | -10/Mines | Destroyed 16 combat bots 1538 | -10/Mines | Destroyed by S-10 Pest with Light Assault Rifle Last Messages --------------- 01491_ The unstable cave ceiling collapses. 01491_ Acquired 36 matter. 01492_ Acquired Aluminum Leg. 01493_ U-05 Engineer lays Concrete. 01494_ U-05 Engineer builds a Wall. 01498_ U-05 Engineer lays Concrete. 01498_ U-05 Engineer builds a Wall. 01502_ U-05 Engineer lays Concrete. 01503_ U-05 Engineer builds a Wall. 01513_ K-01 Serf collects debris. 01528_ S-10 Pest destroyed. 01530_ Grenade Launcher destroyed. 01530_ Destroyed Grenade Launcher. 01530_ Wheel destroyed. 01530_ Destroyed Wheel. 01530_ Lgt. Ion Engine destroyed. 01530_ Destroyed Lgt. Ion Engine. 01534_ K-01 Serf collects debris. 01537_ S-10 Pest suffers critical hit (Burn). 01537_ S-10 Pest destroyed. Map ----- +----------------------------------------------------+ | ??????????## # " ##??????????????????????????? | | ????####### ### ##???????????????????????????? | | ???## ##### ##????????????????????????????? | | ???# # # #?????????????????????????????? | | ??## # # ## #???????###???????????????????? | | ### # ###????# ##??????????????????? | | # ### # ##??? #??????????????????? | | # # # #### #??????????????????? | | # # # %## #???????????????????? | | #""" * ## ### ##???????????????????? | | #""" ######### #????????????????????? | | #""" = #????## ##????????????????????? | | # ##???## ##?????????????????????? | | #########????# #??????????????????????? | | ?????????????# ### ##?????????????????????? | | ??????????? ### ## ?????????????????????? | | ???????????##### ??# # # #?????????????????????? | | ???????????????# #### #???????????????????????? | | ???????????????# #???????????????????????? | | ???????????????### # ##??????????????????????? | | ??????????????#### # ##?????????????????????? | | ?????????????## # #?????????????????????? | | ?????????????# # #??????????????? ?????? | | ?????????????# ##????????????? ?????? | | ?????????????## ###????????? ????? | | ??????????????### t @ #???????? ????? | | ????????????????## #??????# ????? | | ?????????????????### % #????? ?????? | | ???????????????????### =% #??## #???????? | | ?????????????????????## ### #????????? | | ??????????????????????# sk% #????????? | | ??????????????????????## ## [ #???????? | | ???????????????????????###### #???????? | | ????????????????????????????# #???????? | | ?????????????????????????????# ##???????? | | ??????????????????????????????#### ##????????? | | ?????????????????????????????????? #?????????? | | ???????????????????????????????????? #?????????? | | ????????????????????????????????????? ##?????????? | | ??????????????????????????????????????#??????????? | | ?????????????????????????????????????????????????? | | ?????????????????????????????????????????????????? | | | | | | | | | | | | | | | | | +----------------------------------------------------+ Best States ------------- Heat Dissipation 35 Energy Generation 10 Energy Capacity 125 Matter Stores 300 Matter Capacity 300 Sight Range 16 Terrain Scan Range 16 Terrain Scan Density 10 Evasion (%) 55 Item Schematics ----------------- None Robot Schematics ------------------ None Fabricated ------------ Nothing Alien Tech Used ----------------- None Achievements -------------- None Challenges ------------ None Game ------ Seed LightBiometalAxe Manual? 0 Play Time 00:15:44 Cumulative 299.6 hours Start 2022.04.15 @ 10:19:33 End 2022.04.15 @ 10:32:34 Sessions 1 Manual Loads 0 Difficulty Rogue Special Mode None Game No. 247 Rogue 247 Adventurer 0 Explorer 0 Win Type - Total 0 Types 0/0/0/0/0/0/0/0/0 Lore% 55 Gallery% 60 Achievement% 44 Wizard Run 0 Options --------- ASCII 0 Keyboard 0 Movement Mouse Keybinds 0 Fullscreen 1 Font 16/SmallcapsGlow Map View 75x55 Tactical HUD 1 Map Filters NONE Filters NONE Steam 1 RUN: 96b934a9-80e5-4697-9e95-04ef4dc89851